bitfinex-derivatives/quotes_ETHF0:USTF0_20250224
["timestamp","ask_amount","ask_price","bid_price","bid_amount"]
[1740371422999,3.2078,2705.5,2704.8,3.21333965]
[1740371423187,3.2078,2705.5,2704.8,0.00553965]
[1740371423388,0.73934,2705.3,2704.8,0.74500965]
[1740371423691,0.73932,2705.4,2704.9,0.73944]
[1740371423891,0.73932,2705.4,2704.8,0.74499965]
[1740371424092,3.2078,2705.5,2705.0,0.7394]
[1740371424292,3.2078,2705.5,2704.8,0.00553965]
[1740371424492,3.94718,2705.2,2704.8,0.00553965]
[1740371424689,3.2078,2704.9,2704.8,0.00553965]
[1740371424895,3.94725,2704.9,2704.8,0.00553965]
[1740371425899,3.2078,2704.9,2704.8,0.00553965]
[1740371426097,3.94725,2704.9,2704.8,0.00553965]
[1740371426297,3.94725,2704.9,2703.6,6.0278]
[1740371426298,3.2078,2704.9,2704.0,0.73968]
[1740371426502,2.823,2705.1,2703.7,1.84946]
[1740371426503,3.2078,2704.7,2703.7,1.84946]
[1740371426700,3.2078,2704.4,2704.3,0.73962]
[1740371426893,2.819,2704.6,2703.6,3.2078]
[1740371427201,2.819,2704.6,2703.9,3.2078]
[1740371427505,0.00553965,2704.5,2704.3,0.73959]
[1740371427799,0.00553965,2704.5,2704.4,0.73959]
[1740371428002,0.00553965,2704.5,2704.0,0.00553965]
[1740371428300,0.00553965,2704.5,2704.2,0.73963]
[1740371428500,0.00553965,2704.5,2704.0,0.00553965]
[1740371428696,3.21333965,2704.5,2704.0,0.00553965]
[1740371428898,3.21333965,2704.5,2704.4,0.73959]
[1740371429198,3.21333965,2704.5,2704.0,0.00553965]
[1740371429404,0.73959,2704.4,2704.0,0.00553965]
[1740371429700,3.21333965,2704.5,2704.1,0.73967]
[1740371429900,3.95291965,2704.5,2704.1,0.73967]
[1740371430199,3.2078,2703.6,2702.0,0.00319074]
[1740371430395,3.2078,2702.5,2702.2,0.74018]
[1740371430594,0.74003,2702.8,2702.3,0.74014]
[1740371430796,3.2078,2703.1,2702.0,44.01099074]
[1740371431002,1.0742,2703.4,2703.3,0.73989]
[1740371431302,4.282,2703.4,2702.4,2.888]
[1740371431700,3.2078,2703.1,2702.3,3.2078]
[1740371431905,3.2078,2702.8,2702.2,3.2078]
[1740371432100,3.2078,2702.5,2702.0,40.80319074]
[1740371432603,3.2078,2702.2,2702.0,0.00319074]
[1740371432803,6.1278,2702.2,2702.0,0.00319074]
[1740371433098,3.2078,2702.2,2702.0,0.00319074]
[1740371433304,3.2078,2702.3,2702.0,0.00319074]
[1740371433807,3.2078,2702.3,2702.2,0.74019]
[1740371434004,1.006,2702.8,2702.0,0.00319074]
[1740371434197,3.2078,2702.3,2702.0,0.00319074]
[1740371434401,3.2078,2702.6,2702.5,0.74011]
[1740371434601,3.2078,2702.6,2702.5,0.7401]
[1740371434896,3.2078,2702.6,2702.3,0.74015]
[1740371435097,3.2078,2702.6,2702.0,0.00319074]
[1740371435300,3.2078,2702.2,2702.0,0.00319074]
[1740371435606,3.94792,2702.5,2702.0,0.00319074]
[1740371435803,3.2078,2702.5,2702.0,0.00319074]
[1740371436310,3.2078,2702.8,2702.4,0.74014]
[1740371436493,0.73997,2703.0,2702.4,0.74014]
[1740371436698,3.2078,2703.1,2702.4,3.021]
[1740371436898,3.2078,2703.1,2702.3,3.2078]
[1740371437098,3.2078,2703.1,2702.4,3.024]
[1740371437605,3.2078,2703.1,2702.7,0.74003]
[1740371437802,3.2078,2703.1,2702.6,6.2358]
[1740371438005,3.2078,2703.1,2702.8,0.74001]
[1740371438198,3.2078,2703.1,2702.6,3.2078]
[1740371438509,3.2078,2703.1,2702.6,3.94787]
[1740371438703,3.2078,2703.1,2702.3,3.2078]
[1740371438895,3.2078,2703.1,2702.0,0.00319074]
[1740371438896,3.2078,2702.7,2702.0,3.21099074]
[1740371439201,3.2078,2702.7,2702.6,0.74008]
[1740371439507,3.2078,2703.0,2702.3,6.2328]
[1740371439800,3.2078,2703.0,2702.7,0.74004]
[1740371440001,0.74,2702.9,2702.4,41.54013]
[1740371440212,3.2078,2702.7,2702.0,0.00319074]
[1740371440604,3.2078,2702.4,2702.0,0.00319074]
[1740371440806,6.2328,2702.4,2701.3,3.2078]
[1740371441100,1.0363,2702.9,2700.4,3.2078]
[1740371441101,3.2078,2701.7,2700.4,3.2078]
[1740371441301,3.2078,2701.5,2700.3,3.2078]
[1740371441505,3.2078,2701.7,2700.7,1.85152]
[1740371441699,3.2078,2701.7,2700.4,3.117]
[1740371441700,3.2078,2701.8,2701.1,3.2078]
[1740371442097,3.2078,2701.5,2700.7,8.05486808]
[1740371442407,3.2078,2701.0,2700.2,3.2078]
[1740371442604,3.2078,2700.9,2700.1,3.2078]
[1740371442803,3.2078,2700.9,2700.8,0.74058]
[1740371443212,3.2078,2701.4,2700.5,3.176]
[1740371443510,3.2078,2701.4,2701.3,0.74044]
[1740371443698,3.2078,2701.4,2700.8,3.2078]
[1740371443699,3.2078,2701.4,2700.5,8.93868164]
[1740371443901,3.2078,2701.4,2700.2,44.0078]
[1740371444105,0.00555072,2701.6,2699.9,1.24695209]
[1740371444106,3.2078,2700.5,2700.4,0.74069]
[1740371445309,3.2078,2700.9,2700.8,0.74058]
[1740371445512,3.2078,2700.9,2700.0,7.185]
[1740371446007,3.2078,2701.3,2701.2,0.74047]
[1740371446207,0.00555072,2701.6,2701.5,0.74038]
[1740371446208,3.21335072,2701.6,2701.5,0.74038]
[1740371446408,3.21335072,2701.6,2700.7,1.0111]
[1740371446712,3.2078,2701.3,2700.5,23.715]
[1740371446910,3.2078,2701.0,2700.5,20.522]
[1740371447109,0.00555072,2701.6,2700.5,23.7298]
[1740371447110,3.2078,2701.3,2700.5,23.7298]
[1740371447311,3.2078,2701.3,2701.2,0.74047]
[1740371449014,3.94825,2701.3,2700.4,3.2078]
[1740371449213,3.2078,2701.0,2700.4,3.2078]
[1740371449510,3.2078,2701.3,2701.1,0.74048]
[1740371449711,3.2078,2701.3,2700.5,1.85165]
[1740371449906,3.2078,2701.3,2701.2,0.74047]
[1740371450107,3.2078,2701.3,2700.7,1.85152]
[1740371450108,3.2078,2701.3,2700.6,40.8]
[1740371450420,3.19455072,2701.6,2700.5,0.74064]
[1740371450421,3.94834,2701.0,2700.5,0.74064]
[1740371450616,3.2078,2701.0,2700.9,0.74053]
[1740371450812,3.2078,2701.0,2700.1,6.3948]
[1740371451111,3.2078,2700.7,2700.4,0.74066]
[1740371451320,3.2078,2700.7,2700.0,44.8]
[1740371451518,3.2078,2700.7,2700.6,0.74063]
[1740371452723,3.2078,2701.3,2700.1,3.2078]
[1740371453017,3.2078,2701.3,2701.2,0.74047]
[1740371453217,3.2078,2701.5,2701.3,0.74042]
[1740371453423,3.2078,2701.5,2700.8,1.0604]
[1740371453621,3.2078,2701.5,2701.4,0.74041]
[1740371453922,0.00555072,2701.6,2701.5,0.74038]
[1740371454319,3.2078,2701.8,2701.2,6.3818]
[1740371454524,0.73999,2703.0,2702.5,0.74009]
[1740371454821,3.2078,2702.8,2701.7,40.8]
[1740371455023,3.2078,2701.8,2701.4,0.74039]
[1740371455215,3.2078,2701.5,2701.3,0.00555072]
[1740371456228,0.74055,2701.0,2700.5,0.74064]
[1740371456419,3.2078,2700.8,2700.7,0.7406]
[1740371456618,3.2078,2700.8,2700.1,1.0839]
[1740371457117,3.2078,2700.8,2700.7,0.7406]
[1740371457316,3.2078,2700.8,2700.4,0.74067]
[1740371457520,3.2078,2700.8,2700.6,0.74062]
[1740371457717,3.2078,2700.8,2700.0,7.2078]
[1740371457924,3.2078,2700.8,2700.7,0.7406]
[1740371458123,3.2078,2700.8,2700.5,0.74064]
[1740371458325,3.2078,2700.8,2700.7,0.7406]
[1740371458521,3.231,2701.0,2700.1,3.2078]
[1740371458827,8.5899,2701.4,2700.3,3.2078]
[1740371459025,8.5899,2701.4,2700.5,1.85165]
[1740371459221,8.5899,2701.4,2700.2,9.24581241]
[1740371459222,3.2078,2701.1,2700.2,4.3276]
[1740371459424,3.2078,2701.1,2700.9,0.74055]
[1740371459618,3.2078,2701.1,2700.3,3.2078]
[1740371459819,3.2078,2701.1,2700.8,0.74057]
[1740371460020,0.74057,2700.9,2700.3,0.7407]
[1740371460223,2.1511,2701.4,2700.2,1.0966]
[1740371460224,3.2078,2700.8,2700.2,1.0966]
[1740371460628,3.2078,2700.8,2700.0,7.2078]
[1740371460925,3.2078,2700.8,2699.0,1.57261355]
[1740371460926,0.74091,2699.6,2699.2,0.30529553]
[1740371461222,3.2078,2699.3,2698.0,3.2078]
[1740371461418,3.2078,2698.9,2698.5,0.7412]
[1740371461613,2.1893,2699.5,2697.8,1.0]
[1740371461614,3.2078,2698.6,2697.8,1.0]
[1740371461818,3.2078,2698.0,2697.8,1.0]
[1740371462018,3.2078,2698.0,2697.1,11.38984033]
[1740371462232,3.2078,2697.2,2697.1,11.38984033]
[1740371462521,3.2078,2697.7,2697.1,11.38984033]
[1740371462725,0.00555072,2697.8,2697.7,0.74143]
[1740371462726,7.2e-07,2697.8,2697.7,0.74143]
[1740371463022,7.2e-07,2697.8,2697.7,7.27423]
[1740371463219,7.2e-07,2697.8,2697.7,14.75439657]
[1740371463414,3.2078,2699.9,2698.2,1.85319]
[1740371463619,5.1847,2700.4,2698.9,1.85274]
[1740371463822,1.114,2700.4,2699.1,1.85259]
[1740371464021,6.5398,2700.6,2699.3,3.2078]
[1740371464228,3.2078,2700.6,2700.0,0.74078]
[1740371464418,4.3218,2701.3,2700.0,1.852]
[1740371464620,3.2078,2701.2,2700.5,3.2078]
[1740371464823,3.2078,2701.3,2700.5,3.333]
[1740371465017,3.2078,2701.4,2701.1,0.74048]
[1740371465222,3.333,2701.7,2700.5,3.2078]
[1740371465223,3.2078,2701.7,2700.5,3.2078]
[1740371465423,3.2078,2701.7,2701.3,0.74043]
[1740371465631,3.2078,2701.7,2701.0,0.7405]
[1740371465823,3.2078,2701.7,2701.2,0.00556143]
[1740371466027,3.2078,2701.6,2701.2,0.00556143]
[1740371466227,0.00556143,2701.8,2701.2,0.00556143]
[1740371466532,3.2078,2702.7,2701.7,3.2078]
[1740371466733,3.2078,2702.4,2701.7,6.5798]
[1740371466931,1.0521,2703.0,2702.0,3.2078]
[1740371467129,3.2078,2703.4,2702.4,3.2078]
[1740371467325,3.2078,2703.8,2702.7,3.2078]
[1740371467630,3.2078,2703.2,2702.2,2.1628]
[1740371467827,3.2078,2702.9,2702.2,1.0727]
[1740371468133,3.2078,2702.9,2701.8,3.2078]
[1740371468134,3.2078,2702.6,2702.4,0.00555062]
[1740371468427,3.2078,2702.7,2702.4,0.00555062]
[1740371468633,0.00555062,2703.5,2702.4,3.21335062]
[1740371469036,3.2078,2703.1,2702.4,3.21335062]
[1740371469226,0.00555062,2703.5,2702.9,3.2078]
[1740371469427,0.00555062,2703.5,2702.9,3.38]
[1740371469629,0.00555062,2703.5,2703.4,0.73986]
[1740371470134,0.00555062,2703.5,2702.6,1.798]
[1740371470435,3.2078,2702.9,2702.3,21.26916]
[1740371470628,3.2078,2702.6,2701.9,3.2078]
[1740371470827,3.2078,2702.6,2701.6,3.2078]
[1740371471030,0.74011,2702.5,2701.4,2.1434]
[1740371471327,3.2078,2702.6,2702.0,0.74022]
[1740371471533,0.74011,2702.5,2701.4,5.3512]
[1740371471832,3.2078,2702.6,2701.4,5.3512]
[1740371472031,3.2078,2702.2,2701.4,4.3103]
[1740371472232,3.2078,2701.5,2700.6,3.2078]
[1740371472730,3.94819,2701.5,2700.7,0.74058]
[1740371472929,0.74041,2701.4,2700.8,0.00555062]
[1740371473131,3.2078,2701.5,2700.8,0.00555062]
[1740371473132,0.74600062,2701.3,2700.8,0.00555062]
[1740371473435,0.00555062,2701.3,2700.9,3.2078]
[1740371473634,0.00555062,2701.3,2701.1,0.74049]
[1740371473824,0.74048,2701.2,2700.8,0.00555062]
[1740371474135,0.00555062,2701.3,2701.1,0.74048]
[1740371474337,3.2078,2701.2,2700.8,0.00555062]
[1740371474733,0.00555062,2701.3,2701.2,0.74047]
[1740371474936,0.00555062,2701.3,2700.9,3.399]
[1740371475125,0.00555062,2701.3,2701.2,0.74047]
[1740371475329,0.00555062,2701.3,2701.2,3.94827]
[1740371475524,3.2078,2702.6,2702.1,0.74022]
[1740371475727,3.2078,2702.9,2701.9,3.2078]
[1740371476234,3.397,2703.3,2702.7,0.74005]
[1740371476235,3.2078,2703.1,2702.7,0.74005]
[1740371476425,3.2078,2703.5,2702.5,3.2078]
[1740371476630,1.0295,2703.7,2702.5,6.6038]
[1740371476833,3.2078,2703.5,2702.7,0.74559062]
[1740371477032,0.00555062,2703.3,2702.7,0.00555062]
[1740371477432,0.00555062,2703.3,2702.7,3.21335062]
[1740371477639,0.00555062,2703.3,2703.2,0.73992]
[1740371477939,3.2078,2704.1,2703.2,9.387]
[1740371478136,3.2078,2704.1,2703.3,3.395]
[1740371478330,3.2078,2704.1,2703.2,11.34133928]
[1740371478536,3.2078,2703.7,2703.3,0.73988]
[1740371478834,3.2078,2703.7,2702.9,6.5988]
[1740371479031,3.2078,2703.7,2703.6,0.73981]
[1740371479238,3.2078,2704.0,2703.2,3.2078]
[1740371479438,0.00555062,2703.9,2703.2,3.2078]
[1740371479838,0.00555062,2703.9,2703.8,0.73975]
[1740371480330,0.00555062,2703.9,2703.0,3.387]
[1740371480536,0.00555062,2703.9,2703.8,0.73975]
[1740371480838,0.00555062,2703.9,2703.2,3.2078]
[1740371480839,0.74529062,2703.9,2703.3,4.86069191]
[1740371481034,0.74529062,2703.9,2703.1,40.8]
[1740371481236,0.74529062,2703.9,2703.0,3.387]
[1740371481237,0.73981,2703.6,2703.0,0.73995]
[1740371481436,3.2078,2703.4,2702.7,3.38555062]
[1740371481641,0.73988,2703.4,2702.7,3.38555062]
[1740371481941,0.00555062,2703.9,2703.7,0.73977]
[1740371481942,3.2078,2703.8,2703.7,0.73977]
[1740371482143,0.00555062,2703.9,2703.2,6.5908]
[1740371482345,0.00555062,2703.9,2703.8,0.73975]
[1740371482939,3.2078,2704.9,2703.8,17.48304844]
[1740371483148,3.2078,2704.9,2704.8,0.73948]
[1740371483442,0.73922,2705.8,2705.3,0.73933]
[1740371483739,3.2078,2705.6,2704.9,3.38]
[1740371484037,3.2078,2706.1,2705.8,0.73919]
[1740371484239,3.2078,2706.4,2705.9,0.73916]
[1740371484435,0.00555062,2706.2,2705.8,0.7392]
[1740371484640,3.2078,2706.0,2705.4,3.378]
[1740371484841,3.2078,2706.0,2705.1,3.2078]
[1740371485041,3.2078,2705.7,2705.1,3.2078]
[1740371485237,3.2078,2705.4,2705.0,0.00555062]
[1740371485533,3.9472,2705.1,2705.0,0.00555062]
[1740371485733,3.2078,2705.1,2704.1,6.1618]
[1740371485936,3.2078,2704.5,2704.1,3.94746]
[1740371486135,3.2078,2704.5,2703.7,3.2078]
[1740371486443,0.73959,2704.4,2703.9,0.73973]
[1740371486746,3.2078,2704.4,2703.8,3.372]
[1740371486943,3.375,2705.1,2703.8,3.372]
[1740371486944,3.2078,2704.8,2704.0,4.80766442]
[1740371487143,0.00555062,2704.4,2704.3,0.73962]
[1740371487339,3.21335062,2704.4,2704.3,0.73962]
[1740371487539,0.00555062,2704.4,2704.3,0.73962]
[1740371487740,0.00555062,2704.4,2704.0,3.2078]
[1740371488142,3.2078,2704.2,2703.9,0.00555062]
[1740371488338,3.2078,2704.2,2704.0,0.73968]
[1740371488546,0.00555062,2704.4,2703.9,0.00555062]
[1740371488743,0.00555062,2704.4,2704.3,0.73962]
[1740371488945,0.00555062,2704.4,2703.9,0.00555062]
[1740371489148,3.2078,2704.3,2703.9,0.00555062]
[1740371489447,3.9475,2704.0,2703.9,0.00555062]
[1740371489639,0.73977,2703.8,2703.4,0.73986]
[1740371489845,0.73974,2703.9,2703.5,0.73983]
[1740371490038,3.2078,2703.6,2703.4,0.73984]
[1740371490243,3.2078,2703.6,2703.1,3.2078]
[1740371490445,3.2078,2703.3,2702.2,1.0643]
[1740371490749,3.373,2703.9,2702.5,0.00555062]
[1740371490750,3.2078,2703.0,2702.5,0.00555062]
[1740371490947,3.21335062,2703.0,2702.5,0.00555062]
[1740371491147,3.94788,2702.6,2702.5,0.00555062]
[1740371491343,3.94788,2702.6,2701.3,0.9954]
[1740371491344,3.2078,2702.6,2701.3,0.9954]
[1740371491652,3.2078,2702.3,2701.9,0.74025]
[1740371491846,3.2078,2702.3,2701.7,40.8]
[1740371492247,3.2078,2702.3,2701.3,0.9954]
[1740371492248,3.94798,2702.3,2701.8,0.74029]
[1740371492445,3.2078,2702.6,2701.7,0.00555062]
[1740371492647,3.2078,2702.3,2701.8,0.7403]
[1740371492844,3.2078,2702.3,2701.7,0.00555062]
[1740371493042,3.37,2702.7,2701.9,3.2078]
[1740371493341,3.2078,2702.2,2701.8,4.73812313]
[1740371493544,3.2078,2701.9,2701.7,0.74586062]
[1740371493738,3.2078,2701.9,2701.7,0.00555062]
[1740371493952,0.7403,2701.8,2701.7,0.00555062]
[1740371494247,0.74035,2701.7,2700.7,23.876]
[1740371494446,3.2078,2701.5,2700.7,23.876]
[1740371494654,3.2078,2701.2,2700.7,23.876]
[1740371494943,0.74033,2701.7,2700.8,7.91639223]
[1740371495146,3.2078,2701.4,2700.7,23.875]
[1740371495347,0.00555062,2701.5,2701.0,0.00555062]
[1740371495549,0.00555062,2701.5,2701.4,0.74041]
[1740371496049,0.00555062,2701.5,2701.1,4.77837568]
[1740371496244,0.00555062,2701.5,2701.0,0.00555062]
[1740371496555,0.00555062,2701.5,2701.2,0.74044]
[1740371496747,0.00555062,2701.5,2701.0,0.00555062]
[1740371497141,0.00555062,2701.5,2701.2,0.74044]
[1740371497348,3.21335062,2701.5,2701.0,0.00555062]
[1740371497549,3.21335062,2701.5,2701.1,40.8]
[1740371497749,3.21335062,2701.5,2701.0,0.00555062]
[1740371498254,3.21335062,2701.5,2701.4,0.74041]
[1740371498648,0.00555062,2701.5,2701.4,0.74041]
[1740371498847,6.2e-07,2701.5,2701.4,0.74041]
[1740371499048,6.2e-07,2701.5,2701.4,6.74041]
[1740371499242,6.2e-07,2701.5,2701.4,46.29052751]
[1740371499850,6.2e-07,2701.5,2701.4,41.54041]
[1740371500049,6.2e-07,2701.5,2701.4,0.74041]
[1740371500748,6.2e-07,2701.5,2701.3,0.74042]
[1740371500950,6.2e-07,2701.5,2701.0,0.00555062]
[1740371500951,6.2e-07,2701.5,2701.4,0.74041]
[1740371501450,3.20780062,2701.5,2701.1,2.954]
[1740371501754,0.74049,2701.1,2701.0,6.2e-07]
[1740371501943,1.85126,2701.1,2699.0,3.2078]
[1740371502150,1.85125,2701.1,2699.1,3.35]
[1740371502352,3.2078,2700.2,2699.3,3.2078]
[1740371502554,3.2078,2700.3,2699.3,3.2078]
[1740371502752,3.2078,2699.9,2699.3,3.2078]
[1740371502953,3.2078,2699.9,2699.7,0.74085]
[1740371503152,3.2078,2699.9,2699.0,5.06045]
[1740371503153,3.21335062,2699.9,2699.3,0.00555062]
[1740371503349,3.94872,2699.6,2699.3,0.00555062]
[1740371503554,3.2078,2699.6,2699.3,0.00555062]
[1740371503860,0.74096,2699.4,2699.3,0.00555062]
[1740371504055,3.2078,2699.4,2699.3,0.00555062]
[1740371504252,0.00555062,2699.9,2699.3,0.00555062]
[1740371504458,0.00555062,2699.9,2699.8,0.74085]
[1740371504751,3.2078,2700.4,2700.3,0.74071]
[1740371504955,1.0276,2701.3,2701.0,0.74052]
[1740371505153,3.2078,2701.1,2700.9,0.74054]
[1740371505353,3.2078,2701.4,2700.6,3.2078]
[1740371505558,3.2078,2701.4,2700.4,4.88130445]
[1740371505748,3.2078,2701.4,2700.6,3.2078]
[1740371505952,3.2078,2701.1,2700.6,0.00555062]
[1740371506153,3.2078,2701.1,2700.7,0.74059]
[1740371506347,3.2078,2700.8,2700.6,0.00555062]
[1740371506751,0.7406,2700.7,2700.6,0.00555062]
[1740371507255,9.344,2700.7,2699.6,2.954]
[1740371507461,3.2078,2700.2,2699.3,3.2078]
[1740371507653,3.2078,2699.9,2699.6,0.7409]
[1740371507853,3.2078,2700.2,2699.4,44.14]
[1740371508055,0.74093,2699.5,2699.4,40.8]
[1740371508254,3.2078,2699.6,2698.4,3.2078]
[1740371508459,3.2078,2699.1,2697.9,3.2078]
[1740371508656,0.74112,2698.8,2698.7,0.00555062]
[1740371508857,7.31247062,2698.8,2698.7,0.00555062]
[1740371509157,3.21335062,2698.8,2698.7,0.00555062]
[1740371509359,0.74126,2698.3,2697.9,3.2078]
[1740371509561,3.2078,2698.1,2697.2,3.2078]
[1740371509861,3.2078,2698.6,2697.3,4.76160393]
[1740371510060,0.00555062,2698.8,2698.7,0.74115]
[1740371510257,0.00555062,2698.8,2698.2,3.367]
[1740371510657,3.21335062,2698.8,2698.6,0.74116]
[1740371510862,0.00555062,2698.8,2698.7,0.74115]
[1740371511157,3.21335062,2698.8,2698.1,3.366]
[1740371511365,3.21335062,2698.8,2698.2,3.2078]
[1740371511664,0.00555062,2698.8,2698.2,4.92413307]
[1740371511863,3.21335062,2698.8,2698.0,3.2078]
[1740371512063,6.57735062,2698.8,2697.5,3.363]
[1740371512254,3.2078,2698.5,2698.0,0.74133]
[1740371512460,3.2078,2698.2,2697.5,3.363]
[1740371512761,0.74132,2698.1,2697.5,0.74146]
[1740371512960,3.2078,2698.2,2697.3,3.2078]
[1740371513161,3.2078,2698.5,2698.3,0.74124]
[1740371513463,3.2078,2698.5,2697.8,3.376]
[1740371514368,0.74131,2698.2,2697.8,0.7414]
[1740371514563,0.74131,2698.2,2697.1,3.2078]
[1740371514564,3.2078,2697.9,2697.1,3.2078]
[1740371514865,3.376,2698.2,2697.2,3.2078]
[1740371514866,3.2078,2698.0,2697.2,3.2078]
[1740371515065,3.376,2698.2,2697.2,8.01785763]
[1740371515264,3.2078,2698.1,2697.7,0.74142]
[1740371515457,0.74136,2698.0,2697.2,3.2078]
[1740371515657,3.2078,2697.9,2696.9,1.0565]
[1740371515871,6.5838,2698.2,2696.9,1.0565]
[1740371516066,3.2078,2697.6,2696.7,3.2078]
[1740371516366,3.2078,2697.1,2696.9,0.74163]
[1740371516562,4.11946,2697.6,2697.0,0.74162]
[1740371516766,3.2078,2697.1,2696.9,0.74162]
[1740371516966,3.21336143,2697.4,2696.4,3.2078]
[1740371517562,3.21336143,2697.4,2696.8,0.74165]
[1740371517759,3.2078,2697.0,2696.4,3.2078]
[1740371517962,3.2078,2697.0,2696.3,0.74179]
[1740371517963,6.5758,2697.0,2696.3,0.74179]
[1740371518158,7.6537,2697.3,2696.2,3.2078]
[1740371518364,7.6537,2697.3,2696.6,3.2078]
[1740371519068,7.6537,2697.3,2696.5,3.2078]
[1740371519258,7.6537,2697.3,2696.2,3.409]
[1740371519465,7.6537,2697.3,2696.1,3.2078]
[1740371519664,7.6537,2697.3,2696.4,3.2078]
[1740371519961,3.2078,2697.0,2696.2,3.2078]
[1740371520269,4.4639,2697.3,2696.2,0.74182]
[1740371520270,3.2078,2696.8,2696.2,0.74182]
[1740371520563,3.2078,2696.8,2695.5,3.2078]
[1740371520770,6.6128,2697.1,2696.0,3.2078]
[1740371520957,6.6128,2697.1,2696.4,3.2078]
[1740371521159,6.6128,2697.1,2696.1,44.205]
[1740371521358,6.6128,2697.1,2696.6,3.2078]
[1740371521560,0.74164,2697.0,2696.1,47.4128]
[1740371521765,6.6128,2697.1,2696.1,44.0078]
[1740371521959,3.2078,2696.8,2696.1,3.2078]
[1740371522368,3.2078,2697.0,2695.9,3.2078]
[1740371522664,0.74177,2696.5,2696.1,0.74184]
[1740371522873,3.2078,2696.7,2695.7,2.954]
[1740371523067,3.2078,2696.7,2695.6,6.6198]
[1740371523068,3.2078,2696.4,2695.6,3.2078]
[1740371523266,3.2078,2695.7,2694.6,3.2078]
[1740371523467,0.7421,2695.3,2694.9,0.74218]
[1740371523666,3.477,2695.4,2694.9,0.74217]
[1740371523862,3.2078,2695.2,2694.2,3.2078]
[1740371524071,3.2078,2695.2,2694.0,0.1]
[1740371524072,1.0419,2695.1,2694.9,3.2078]
[1740371524271,6.7418,2695.0,2694.3,4.8258534]
[1740371524462,0.74242,2694.1,2694.0,0.1]
[1740371524672,3.2078,2694.7,2694.0,0.1]
[1740371524967,3.2078,2694.7,2694.1,3.2078]
[1740371525169,3.2078,2694.8,2694.0,3.3078]
[1740371525372,5.2826,2695.0,2694.0,0.1]
[1740371525674,3.2078,2694.6,2694.0,3.3078]
[1740371525875,3.2078,2695.3,2694.4,3.2078]
[1740371526374,0.00556143,2695.4,2695.3,0.74209]
[1740371526575,3.2078,2696.2,2695.1,6.8748]
[1740371526770,3.2078,2696.2,2695.4,3.2078]
[1740371526968,3.2078,2696.2,2695.3,1.85522]
[1740371527169,3.2078,2696.2,2695.8,0.01636236]
[1740371527464,3.94972,2695.9,2695.8,0.01636236]
[1740371527766,3.2078,2695.9,2694.2,3.2078]
[1740371527974,3.2078,2695.3,2694.2,3.2078]
[1740371528168,0.9953,2695.8,2694.5,3.2078]
[1740371528169,6.8858,2695.4,2694.5,3.2078]
[1740371528370,3.2078,2695.1,2694.9,0.01898261]
[1740371528573,3.94995,2695.1,2694.9,0.01898261]
[1740371528773,3.2078,2695.1,2695.0,0.03796521]
[1740371528976,3.94994,2695.1,2695.0,0.03796521]
[1740371529168,9.2078,2695.1,2694.0,0.1]
[1740371529471,3.2078,2694.5,2694.0,0.1]
[1740371529877,3.2078,2694.5,2694.1,0.7424]
[1740371530172,0.00556143,2694.8,2694.0,0.1]
[1740371530475,3.2078,2694.6,2694.0,0.1]
[1740371530671,3.2078,2694.3,2694.0,0.1]
[1740371530878,3.672,2694.6,2694.0,0.1]
[1740371531072,3.67656143,2694.8,2694.0,3.3078]
[1740371531272,3.67656143,2694.8,2694.0,0.1]
[1740371531467,3.2078,2694.5,2694.0,0.1]
[1740371531772,0.00556143,2694.8,2694.7,0.74225]
[1740371531978,1.43e-06,2694.8,2694.7,3.95005]
[1740371532279,1.43e-06,2694.8,2694.7,9.95005]
[1740371532473,1.43e-06,2694.8,2694.7,14.69790062]
[1740371532773,3.2078,2696.1,2694.7,12.9028]
[1740371533077,3.2078,2695.4,2694.7,3.2078]
[1740371533468,3.71,2695.5,2695.4,0.74206]
[1740371533779,3.21336143,2695.7,2695.2,0.00556143]
[1740371533970,3.95535143,2695.7,2695.4,0.01906315]
[1740371534171,0.74202,2695.6,2695.4,0.01906315]
[1740371534372,3.21336143,2695.7,2695.5,0.74203]
[1740371534668,3.21336143,2695.7,2695.4,0.01906315]
[1740371534878,3.21336143,2695.7,2695.5,0.01906315]
[1740371535376,0.742,2695.6,2695.5,0.01906315]
[1740371535577,6.0,2695.6,2695.5,0.01906315]
[1740371535777,3.21336143,2695.7,2695.6,0.742]
[1740371535974,0.00556143,2695.7,2695.6,0.01906315]
[1740371536170,0.00556143,2695.7,2695.6,0.76106315]
[1740371536569,1.43e-06,2695.7,2695.6,3.96886315]
[1740371536877,1.43e-06,2695.7,2695.6,9.96886315]
[1740371537174,1.43e-06,2695.7,2695.6,14.80755821]
[1740371537667,1.43e-06,2695.7,2695.6,55.60755821]
[1740371537872,1.43e-06,2695.7,2695.6,44.76886315]
[1740371538181,1.43e-06,2695.7,2695.6,0.01906315]
[1740371538482,1.43e-06,2695.7,2695.6,0.76106315]
[1740371538870,1.43e-06,2695.7,2695.6,6.76106315]
[1740371539077,1.43e-06,2695.7,2695.6,4.46606315]
[1740371539279,1.43e-06,2695.7,2695.6,0.01906315]
[1740371539574,1.43e-06,2695.7,2695.6,0.0381263]
[1740371539878,1.43e-06,2695.7,2695.6,0.7801263]
[1740371540077,1.43e-06,2695.7,2695.6,0.742]
[1740371540380,1.43e-06,2695.7,2695.6,0.79918945]
[1740371540577,1.43e-06,2695.7,2695.6,0.8182526]
[1740371540777,1.43e-06,2695.7,2695.6,0.0762526]
[1740371540978,0.74190143,2695.7,2695.6,0.0762526]
[1740371541184,0.72294685,2695.3,2695.2,0.00556143]
[1740371541377,3.2078,2695.4,2693.9,4.2623]
[1740371541581,3.2078,2694.9,2694.4,0.74226]
[1740371541787,4.2301,2695.3,2694.1,3.2078]
[1740371541988,3.694,2695.5,2694.3,3.2078]
[1740371542284,1.43e-06,2695.7,2695.6,0.74193]